Cogmind - Beta 15 @@@ ROGUE MODE // 2025.09.14 @ 15:38:17 Player: Petvaria Result: Self-destructed Performance ------------- Evolutions (0) 0 Regions Visited (3) 600 Robots Destroyed (6) 30 Value Destroyed (144) 144 Prototype IDs (1) 20 Alien Tech Used (0) 0 Bonus (0) 0 TOTAL SCORE: 794 Bonus ------- None Cogmind --------- Core Integrity 184/250 Matter 262/300 Energy 225/250 System Corruption 0% Temperature Cool (0) Movement Rolling (100) Location -7/Scraptown Parts ------- > --- POWER (1) -------- Ion Engine > --- PROPULSION (2) --- Light Treads Compact Wheel > --- UTILITY (2) ------ Experimental Recalibrator > --- WEAPON (2) ------- Assault Rifle Battle Cannon > --- INVENTORY (5) ---- Light Ion Engine Aluminum Leg Medium Laser Subdweller Laser CPS Tube (1) Peak State ------------ > --- POWER ------------ Ion Engine > --- PROPULSION ------- Light Treads Compact Wheel > --- UTILITY ---------- Experimental Recalibrator > --- WEAPON ----------- Assault Rifle Battle Cannon > --- INVENTORY -------- Light Ion Engine Aluminum Leg Medium Laser Subdweller Laser CPS Tube [Rating: 15] Favorites ----------- Power Ion Engine Engine Ion Engine Propulsion Light Treads Treads Light Treads Wheel Compact Wheel Utility Scrap Shield Device Experimental Recalibrator Storage Small Storage Unit Protection Scrap Shield Weapon Assault Rifle Energy Gun Subdweller Laser Ballistic Gun Assault Rifle Ballistic Cannon Battle Cannon Special Weapon CPS Tube Build | -11 -10 -10 -7 ------- Run | Yrd Mat Sub Scr Slots Evolved . | . . . . Power . | . . . . Propulsion . | . . . . Utility . | . . . . Weapon . | . . . . Parts Attached 12 | 6 . 4 2 Power 1 | 1 . . . Engine 1 | 1 . . . Core . | . . . . Reactor . | . . . . Propulsion 3 | 2 . 1 . Treads 2 | 2 . . . Leg . | . . . . Wheel 1 | . . 1 . Hover . | . . . . Flight . | . . . . Utility 3 | 1 . 1 1 Device 1 | . . . 1 Storage 1 | 1 . . . Processor . | . . . . Hackware . | . . . . Protection 1 | . . 1 . Artifact . | . . . . Weapon 5 | 2 . 2 1 Energy Gun 2 | 1 . 1 . Energy Cannon . | . . . . Ballistic Gun 1 | 1 . . . Ballistic Cannon 1 | . . 1 . Launcher . | . . . . Special Weapon 1 | . . . 1 Impact Weapon . | . . . . Slashing Weapon . | . . . . Piercing Weapon . | . . . . Special Melee Weapon . | . . . . Unidentified Prototypes 1 | . . . 1 Parts Lost . | . . . . Power . | . . . . Propulsion . | . . . . Utility . | . . . . Weapon . | . . . . Highest Loss Streak . | . . . . To Critical Strikes . | . . . . Average Backups 5 | 3 6 5 5 Power . | . 1 1 1 Propulsion 2 | 1 4 2 1 Utility . | . . . . Weapon 1 | . 1 1 2 Tool/Special . | . . . . Unused Backups 5 | . . 2 3 Power 1 | . . . 1 Propulsion 3 | . . 2 1 Utility . | . . . . Weapon 1 | . . . 1 Tool/Special . | . . . . Average Slot Usage (%) 85 | . 85 85 85 Engine 14 | . 14 14 14 Treads 25 | . 28 27 14 Wheel 2 | . . . 14 Storage 3 | . 14 2 . Protection 10 | . . 11 14 Energy Gun 9 | . 14 10 . Ballistic Gun 14 | . 14 14 14 Ballistic Cannon 4 | . . 3 14 Peak Build Rating 15 | 6 6 10 15 Average Rating 8 | 4 6 9 10 On Entrance 5 | . 6 6 10 Naked Turns . | . . . . Heaviest Build 29 | 14 14 29 28 Greatest Support 40 | 40 40 40 16 Greatest Overweight (x) 1 | . . . 1 Average Overweight (x) . | . . . 1 Largest Inventory Capacity 8 | 8 8 8 5 Average Capacity 5 | 7 8 5 5 Most Carried 7 | 6 6 7 5 Average Carried 5 | 3 6 5 4 Final Capacity 8 | 8 8 5 5 Final Carried 6 | 6 6 5 5 Class Distribution -------------------- 100% | Mutant Dominant Class ---------------- Mutant | -10/Materials Mutant | -10/Subcaves Mutant | -7/Scraptown Resources | -11 -10 -10 -7 ----------- Run | Yrd Mat Sub Scr Matter Collected 413 | 236 33 134 10 Remotely . | . . . . Salvage Created 191 | . 49 128 14 Parts 20 | . 4 13 3 Haulers Intercepted . | . . . . Recyclers Shooed . | . . . . Parts Field Recycled . | . . . . Retrieved Matter . | . . . . Parts Self-Destructed 14 | . . 14 . Prevented . | . . . . Kills | -11 -10 -10 -7 ------- Run | Yrd Mat Sub Scr Combat Hostiles Destroyed 6 | . 1 5 . Guns 6 | . 1 5 . Classes Destroyed 4 | . 1 2 1 Swarmer 3 | . . 3 . Grunt 1 | . 1 . . Subdweller 2 | . . 2 . Tinkerer 1 | . . . 1 Best Kill Streak 3 | . 1 3 1 Combat Bots Only 3 | . 1 3 . Max Kills in Single Turn 1 | . 1 1 1 Gunslinging . | . . . . Exploded . | . . . . Melee . | . . . . Uniques/NPCs Destroyed . | . . . . Combat | -11 -10 -10 -7 -------- Run | Yrd Mat Sub Scr Hostile Shots Fired 22 | . 5 17 . Missed 3 | . . 3 . Hits 19 | . 5 14 . Projectile 19 | . 5 14 . AOE 1 | . . 1 . Damage Taken 415 | . 53 362 . Core 66 | . . 66 . Absorbed by Shields . | . . . . Regen/Repaired (Parts) 89 | . . . 89 Core Remaining (%) 100 | 100 . . . Volleys Fired 27 | . 3 22 2 Largest 2 | . 2 2 2 Hottest 80 | . 70 80 53 Shots Fired 44 | . 6 35 3 Gun 33 | . 6 26 1 Cannon 10 | . . 9 1 Launcher . | . . . . Special 1 | . . . 1 Kinetic 27 | . 3 22 2 Thermal 16 | . 3 13 . Explosive . | . . . . Electromagnetic . | . . . . Robot Hit Streak 14 | . 3 14 1 Robot Miss Streak 2 | . 2 1 1 Penetration Max . | . . . . Secondary Targets . | . . . . Shots Hit Robots 26 | . 4 21 1 Core Hits 10 | . 1 8 1 Critical Kills 1 | . . . 1 Critical Parts Destroyed . | . . . . Critical Strikes 3 | . . 2 1 Burn 1 | . . 1 . Destroy 2 | . . 1 1 Melee Attacks . | . . . . Impact . | . . . . Slashing . | . . . . Piercing . | . . . . Sneak Attacks . | . . . . Combat Hostiles . | . . . . Follow-up Attacks . | . . . . Damage Inflicted 377 | . 53 313 11 Guns 377 | . 53 313 11 Cannons . | . . . . Explosions . | . . . . Melee . | . . . . Ramming . | . . . . Kinetic 150 | . 28 111 11 Thermal 227 | . 25 202 . Explosive . | . . . . Electromagnetic . | . . . . Impact . | . . . . Slashing . | . . . . Piercing . | . . . . Highest Corruption . | . . . . Average Corruption . | . . . . Corruption Purged . | . . . . Corruption Blocked . | . . . . Overload Shots . | . . . . Overflow Damage . | . . . . Projectiles . | . . . . Explosions . | . . . . Melee . | . . . . Knockbacks . | . . . . Impact . | . . . . Kinetic . | . . . . Secondary . | . . . . Self-Inflicted Damage . | . . . . Shots . | . . . . Rammed . | . . . . Targets Rammed . | . . . . Kicked . | . . . . Crushed . | . . . . Highest Temperature 36 | . 36 . . Average Temperature 18 | . 18 . . Received Heat Transfer 66 | . 30 36 . Siege Activations . | . . . . Martial Activations . | . . . . Shielding Activations . | . . . . Robots Disrupted . | . . . . Combat Hostiles . | . . . . Robots Corrupted . | . . . . Combat Hostiles . | . . . . Parts Fried . | . . . . Impact Corruptions . | . . . . Robots Melted . | . . . . Combat Hostiles . | . . . . Parts Melted 1 | . . 1 . Heat Transferred 520 | . 74 446 . Parts Sabotaged . | . . . . Parts Stolen . | . . . . Parts Stripped . | . . . . Power Chain Reactions . | . . . . Alert | -11 -10 -10 -7 ------- Run | Yrd Mat Sub Scr Maximum Alert Level . | . . . . Low Security (%) 100 | 100 100 . . Level 1 . | . . . . Level 2 . | . . . . Level 3 . | . . . . Level 4 . | . . . . Level 5 . | . . . . High Security . | . . . . Max Security . | . . . . Peak Influence 20 | . 20 . . Initial . | . . . . Average 1 | . 2 . . Influence Increases 90 | . 20 70 . Destroy 0b10 Robot/C 80 | . 20 60 . Destroy Leader 10 | . . 10 . Influence Decreases 90 | . 20 70 . Time Decay 90 | . 20 70 . Squads Dispatched . | . . . . Investigation . | . . . . Extermination . | . . . . Reinforcement . | . . . . Assault . | . . . . Garrison . | . . . . Intercept . | . . . . Searches Triggered . | . . . . Construction Impeded . | . . . . Haulers Reinforced . | . . . . Active Scanning Responses . | . . . . Cargo Convoy Interrupts . | . . . . Stealth | -11 -10 -10 -7 --------- Run | Yrd Mat Sub Scr Distress Signals 1 | . 1 . . Communications Jammed . | . . . . Distress Signals . | . . . . Times Spotted 8 | . 2 6 . Peak Tracking Total 3 | . 2 3 1 Tactical Retreats . | . . . . Traps | -11 -10 -10 -7 ------- Run | Yrd Mat Sub Scr Traps Triggered 1 | . . 1 . Indirectly . | . . . . Trap Hack Attempts . | . . . . Triggered . | . . . . Disarmed . | . . . . Reprogrammed . | . . . . Reused . | . . . . Traps Extracted . | . . . . Installed . | . . . . Triggered . | . . . . Machines | -11 -10 -10 -7 ---------- Run | Yrd Mat Sub Scr Machines Disabled . | . . . . Max in Single Turn . | . . . . Machines Repaired . | . . . . Machines Dismantled . | . . . . Machines Sabotaged . | . . . . Overloaded Fab Kills . | . . . . Hacking | -11 -10 -10 -7 --------- Run | Yrd Mat Sub Scr Machines Accessed . | . . . . Terminals . | . . . . Fabricators . | . . . . Repair Stations . | . . . . Recycling Units . | . . . . Scanalyzers . | . . . . Garrison Access . | . . . . Total Hacks . | . . . . Successful . | . . . . Failed . | . . . . Catastrophic . | . . . . Database Lockouts . | . . . . Manual . | . . . . Terminals . | . . . . Fabricators . | . . . . Repair Stations . | . . . . Recycling Units . | . . . . Scanalyzers . | . . . . Garrison Access . | . . . . Terminal Hacks . | . . . . Fabricator Hacks . | . . . . Repair Station Hacks . | . . . . Recycling Unit Hacks . | . . . . Scanalyzer . | . . . . Garrison Access Hacks . | . . . . Unauthorized Hacks . | . . . . Terminals . | . . . . Fabricators . | . . . . Repair Stations . | . . . . Recycling Units . | . . . . Scanalyzers . | . . . . Garrison Access . | . . . . Data Cores Recovered . | . . . . Used . | . . . . Hacking Detections . | . . . . Full Trace Events . | . . . . Feedback Events . | . . . . Feedback Blocked . | . . . . Robot Schematics Acquired . | . . . . Robots Built . | . . . . Authchips . | . . . . Time . | . . . . Total Robot Build Rating . | . . . . Part Schematics Acquired . | . . . . Parts Built . | . . . . Authchips . | . . . . Time . | . . . . Total Part Build Rating . | . . . . Parts Repaired . | . . . . Time . | . . . . Parts Recycled . | . . . . Recycled Matter . | . . . . Retrieved Matter . | . . . . Retrieved Components . | . . . . Parts Scanalyzed . | . . . . Part Schematics Acquired . | . . . . Parts Damaged . | . . . . Bothacking | -11 -10 -10 -7 ------------ Run | Yrd Mat Sub Scr Used RIF Installer . | . . . . Robots Hacked . | . . . . Non-combat . | . . . . Combat . | . . . . Robot Hacks Applied . | . . . . Relay Couplers Released . | . . . . Fabnet Peak Effective % . | . . . . Robots Rewired . | . . . . Allies Hacked . | . . . . Hacks Repelled . | . . . . Allies | -11 -10 -10 -7 -------- Run | Yrd Mat Sub Scr Total Allies . | . . . . Largest Group . | . . . . Highest-Rated Group . | . . . . Highest-Rated Ally . | . . . . Total Orders . | . . . . Ally Attacks . | . . . . Total Damage . | . . . . Kills . | . . . . Allies Corrupted . | . . . . Allies Melted . | . . . . Intel | -11 -10 -10 -7 ------- Run | Yrd Mat Sub Scr Active Infowar (turns) . | . . . . Robot Analysis Total . | . . . . Derelict Logs Recovered . | . . . . Drone Launches . | . . . . Drone Recoveries . | . . . . Exploration | -11 -10 -10 -7 ------------- Run | Yrd Mat Sub Scr Turns Passed 1587 | 115 142 1071 259 Spaces Moved 795 | 71 55 459 210 Core 19 | 19 . . . Treads 557 | 52 55 450 . Legs . | . . . . Wheels 219 | . . 9 210 Hover . | . . . . Flight . | . . . . Fastest Speed 50 | 50 160 100 115 Average Speed 144 | 130 160 158 115 Slowest Speed 160 | 160 160 160 115 Overloaded Moves . | . . . . Propulsion Burnouts . | . . . . Robots Hopped . | . . . . Potential Cave-ins . | . . . . Cave-ins Triggered . | . . . . Exploration Rate (%) 15 | 5 16 17 23 Regions Visited 3 Branch Regions 2 Pre-discovered Areas . | . . . . Known Exits Taken . | . . . . Unknown Exits Taken 3 | 1 1 1 . Scrap Searched 1 | . . . 1 Spaces Dug . | . . . . Terrain Destroyed . | . . . . Melee . | . . . . Projectile . | . . . . AOE . | . . . . Terrain Rammed . | . . . . Walls Destroyed . | . . . . Machines Disabled . | . . . . Actions | -11 -10 -10 -7 --------- Run | Yrd Mat Sub Scr Total 1185 | 93 103 766 223 Wait 328 | 5 46 273 4 Move 792 | 70 54 458 210 Hop . | . . . . Pick Up 14 | 12 . 1 1 Fast Attach 3 | . . 2 1 Attach 6 | 6 . . . Detach . | . . . . Swap 6 | . . 3 3 Drop 6 | . . 4 2 Fire 27 | . 3 22 2 Melee . | . . . . Ram . | . . . . Kick . | . . . . Crush . | . . . . Escape Stasis . | . . . . Rewire . | . . . . Trap . | . . . . Miscellaneous 3 | . . 3 . Route ------- -11/Scrapyard -10/Materials -10/Subcaves -7/Scraptown History --------- Turn | Location | Event 5 | -11/Scrapyard | Discovered new exit (range 16) 116 | -11/Scrapyard | Entered Materials 237 | -10/Materials | Discovered new exit (range 7) 258 | -10/Materials | Entered Subcaves 259 | -10/Subcaves | Approached by a straggling Scientist 284 | -10/Subcaves | A swath of the cavern ceiling suddenly collapsed 295 | -10/Subcaves | Shifting Twisted Machinery released Battle Cannon 303 | -10/Subcaves | Shifting Twisted Machinery released Sub. Monowheel 306 | -10/Subcaves | Build established: Mutant 514 | -10/Subcaves | Ambushed by Subdweller buried in earth 1320 | -10/Subcaves | Scientist uncovered a shortcut to Scraptown 1329 | -10/Subcaves | Entered Scraptown 1562 | -7/Scraptown | Visited CR-KLE's Repair Center 1571 | -7/Scraptown | CR-KLE repaired 2 parts 1577 | -7/Scraptown | Attacked by Scraptown defenders 1587 | -7/Scraptown | Found Prototype Device 1587 | -7/Scraptown | Identified Exp. Recalibrator 1588 | -7/Scraptown | Self-destructed Last Messages --------------- LOCAL NARROWCAST: CR-KLE's Repair Center. CR-KLE: Hi there, Wanderer, welcome to my humble repair center. I can't help you with any prototypes or unique tech, and I don't mess with cores, but anything else is well within my area of expertise. Just let me know if you want your gear repaired. CR-KLE: This will just take a moment... What can I say, spare parts have a way of obeying my every whim, ha ha ha. Stay in one piece now, I can only allow one repair per visitor per cycle, we have to share the resources after all. ANNOUNCEMENT: Intruder alert! Defend Scraptown! CR-KLE suffers critical hit (Destroy). CR-KLE destroyed. Dropped Scrap Shield. Acquired Prototype Device. Identified Exp. Recalibrator. Map ----- +----------------------------------------------------+ | ?????????????????????????????????????????????????? | | ?????????????????????????????????????????????????? | | ?????????????????????????????????????????????????? | | ?????????????????????????????????????????????????? | | ?????????????????????????????????????????????????? | | ?????????????????????????????????????????????????? | | ?????????????????????????????????????????????????? | | ?????????????????????????????????????????????????? | | ?????????????????????????????????????????????????? | | ?????????????????????????????????????????????????? | | ???????????????????????????????? ???????????????? | | ???????????????????????????????? #??????????????? | | ??????????????????????????????? #??????????????? | | ??????????????????????????????? #??????????????? | | ??????????????????????????????? #??????????????? | | ??????????????????????????????? #??????????????? | | ??????????????????????????????? #??????????????? | | ????????????????????????????### #########??????? | | ?????????????????????######## ??????? | | ??????????????????""""""" # ??????? | | ?????????????????#""""""" # ?????? | | ?????????????????#""""""" # ????????? | | ?????????????????#""""""" # ???????????? | | ?????????????????#"""""""! # #??????????????? | | ?????????????????#""" !%* # #??????????????? | | ?????????????????#"""""" @ # #??????????????? | | ?????????????????#"""""""! # #??????????????? | | ?????????????????#""""""" #??????????????? | | ?????????????????#""""""" # #??????????????? | | ??????????????????""""""" # #??????????????? | | ?????????????????????######## #?? "??????????? | | ????????????????????????????# #?? ???" "???? | | ????????????????????????????# p#?? """? ????? | | ????????????????????????????# #?" """ ???? | | ??????????????????????"?"???# #"" " " ""????? | | ?????????????????????? ??# #""" ?????? | | ??????????????????????""" ??# #"" "?????? | | ????????????????????? """ ?# #"" ???????? | | ????????????????????? """ ?# #? ????????? | | ????????????????????? """ # #### ########### | | ????????????????????# """ # | | ????????????????????# | | ???????????????? " # | | ???????????????? ""##""""" # | | ????????????????????######### | | ?????????????????????## | | ?????????????????????# | | ??????????""########### | | ???????? ###### ############# ### | | ???????? #???# ?????????# ? | +----------------------------------------------------+ Best States ------------- Heat Dissipation 25 Energy Generation 10 Energy Capacity 250 Matter Stores 300 Matter Capacity 300 Sight Range 16 Terrain Scan Density 10 Armor Coverage 800 Evasion (%) 50 Recoil Reduction 2 Item Schematics ----------------- None Robot Schematics ------------------ None Fabricated ------------ Nothing Repaired ---------- Nothing Alien Tech Used ----------------- None Achievements -------------- None Challenges ------------ None Game ------ Seed GuidanceAntimissileDriver Manual? 1 Play Time 00:09:44 Cumulative 208.4 hours Start 2025.09.14 @ 15:30:12 End 2025.09.14 @ 15:38:17 Sessions 1 Manual Loads 0 Difficulty Rogue Special Mode None Game No. 185 Rogue 185 Adventurer 0 Explorer 0 Win Type - Total 11 Types 5/0/2/2/1/0/0/0/0/1 Lore% 90 Gallery% 84 Achievement% 68 Wizard Run 0 Options --------- Layout 1 ASCII 0 Keyboard 0 Movement Numpad Keybinds 0 Fullscreen 1 Font 24/Proggy Map View 50x35 Zoom Use 0% Tactical HUD 0 Map Filters NONE Filters NONE Steam 1 RUN: b22d817a-3afd-4f50-b020-e25fbbcb3c09